lending/lending_fUSD_20240522
["ID","MTS","AMOUNT","RATE_DAILY","PERIOD"]
[327741795,1716418492328,151.052307,0.00028,34]
[327741796,1716418494447,1565.2946698,0.00012659,2]
[327741797,1716418511806,157.052307,0.00028,34]
[327741798,1716418515041,157.052307,0.00028,33]
[327741799,1716418517858,157.052307,0.00028,32]
[327741800,1716418521053,157.052307,0.00028,31]
[327741801,1716418525331,157.052307,0.00028,30]
[327741802,1716418553828,173.052307,0.00031,120]
[327741803,1716418557149,3284.33,0.00012419,2]
[327741804,1716418559724,167.052307,0.00031,120]
[327741805,1716418563287,163.052307,0.00031,120]
[327741806,1716418567592,157.052307,0.00031,120]
[327741807,1716418571400,151.052307,0.00031,120]
[327741808,1716418583698,151.052307,0.00031,120]
[327741809,1716418584573,151.052307,0.00031,120]
[327741810,1716418597324,199.052307,0.00031,120]
[327741811,1716418632468,163.6,0.0001248,2]
[327741812,1716418650006,200.0,0.00012388,2]
[327741813,1716418657339,250.0,0.00012388,2]
[327741814,1716418675822,199.052307,0.00031,120]
[327741815,1716418677160,3161.53,0.00012388,2]
[327741816,1716418701416,160.87,0.00012388,2]
[327741817,1716418701731,160.87,0.00012395,2]
[327741818,1716418701802,409.052307,0.00031,120]
[327741819,1716418701866,160.87,0.00012403,2]
[327741820,1716418702098,160.87,0.00012411,2]
[327741821,1716418702296,160.87,0.00012419,2]
[327741822,1716418702736,160.87,0.00012426,2]
[327741823,1716418702930,160.87,0.00012434,2]
[327741824,1716418703137,160.87,0.00012442,2]
[327741825,1716418703374,160.87,0.0001245,2]
[327741826,1716418708715,158.03,0.00021589,30]
[327741827,1716418709095,158.03,0.00025607,30]
[327741828,1716418714813,449.052307,0.00031,120]
[327741829,1716418733207,157.052307,0.00028,30]
[327741830,1716418736040,157.052307,0.00028,31]
[327741831,1716418738577,157.052307,0.00028,32]
[327741832,1716418741162,157.052307,0.00028,33]
[327741833,1716418743991,157.052307,0.00028,34]
[327741834,1716418749391,157.052307,0.00028,35]
[327741835,1716418764889,151.052307,0.00028,35]
[327741836,1716418767507,151.052307,0.00028,34]
[327741837,1716418768210,10000.0,0.00011,2]
[327741838,1716418770570,151.052307,0.00028,33]
[327741839,1716418773052,151.052307,0.00028,32]
[327741840,1716418775877,151.052307,0.00028,31]
[327741841,1716418813396,173.052307,0.00028,31]
[327741842,1716418815733,173.052307,0.00028,32]
[327741843,1716418818214,173.052307,0.00028,33]
[327741844,1716418821280,173.052307,0.00028,34]
[327741845,1716418823901,173.052307,0.00028,35]
[327741846,1716418851411,173.052307,0.00031,120]
[327741847,1716418854610,173.052307,0.00031,120]
[327741848,1716418858727,167.052307,0.00031,120]
[327741849,1716418859677,167.052307,0.00031,120]
[327741850,1716418865747,163.052307,0.00031,120]
[327741851,1716418866607,163.052307,0.00031,120]
[327741852,1716418870669,6430.26,0.00012388,2]
[327741853,1716418877988,223.052307,0.00031,120]
[327741854,1716418975955,286.58,0.00010502,2]
[327741855,1716418976160,286.58,0.00012765,2]
[327741856,1716419008437,2449.67,0.00012519,2]
[327741857,1716419145350,250.0,0.00012419,2]
[327741858,1716419159116,2107.35,0.00012419,2]
[327741860,1716419181556,250.0,0.00012388,2]
[327741862,1716419208797,158.03,0.00021589,30]
[327741863,1716419209165,158.03,0.00026226,30]
[327741864,1716419229770,840.0,0.00012342,2]
[327741867,1716419389944,23890.0,0.00012297,2]
[327741868,1716419396128,1295.22351576,0.00012338,2]
[327741870,1716419432047,-326.03857362,0.00012869,2]
[327741871,1716419432056,-512.76848382,0.0001287,2]
[327741872,1716419432297,-284.70394208,0.0001287,2]
[327741893,1716419438432,-238.3129041,0.0001287,2]
[327741894,1716419438442,-2476.9186,0.00012888,2]
[327741895,1716419438451,-200.0,0.00012895,2]
[327741896,1716419438461,-1000.0,0.00012895,2]
[327741897,1716419438470,-500.0,0.00012895,2]
[327741898,1716419438480,-200.0,0.00012896,2]
[327741899,1716419438490,-200.0,0.00012896,2]
[327741900,1716419438500,-1000.0,0.00012896,2]
[327741901,1716419438511,-1000.0,0.00012896,2]
[327741902,1716419438521,-500.0,0.00012896,2]
[327741903,1716419438531,-500.0,0.00012896,2]
[327741904,1716419438540,-156.09220759,0.00012898,2]
[327741905,1716419438549,-298.09195788,0.00012898,2]
[327741906,1716419438559,-155.58088805,0.00012898,2]
[327741907,1716419438574,-155.0,0.00012898,2]
[327741908,1716419438583,-254.07261996,0.00012898,2]
[327741909,1716419438593,-198.5631271,0.00012898,2]
[327741910,1716419438603,-263.02958027,0.00012898,2]
[327741911,1716419438613,-155.33007435,0.00012898,2]
[327741912,1716419438623,-194.97199603,0.00012899,2]
[327741913,1716419438632,-223.62815808,0.000129,2]
[327741914,1716419438641,-6391.05131566,0.000129,2]
[327741915,1716419438654,-257.207,0.000129,2]
[327741916,1716419438664,-590.54592555,0.000129,2]
[327741917,1716419438674,-162.6035266,0.000129,2]
[327741918,1716419438683,-954.73604744,0.000129,2]
[327741919,1716419438692,-4095.6853,0.000129,2]
[327741920,1716419438702,-170.21516562,0.000129,2]
[327741921,1716419438711,-168.22761384,0.000129,2]
[327741922,1716419438720,-362.15206863,0.000129,2]
[327741923,1716419438730,-321.40445294,0.000129,2]
[327741924,1716419438739,-218.42502293,0.00012987,2]
[327741925,1716419438751,-207.17530482,0.00012987,2]
[327741926,1716419438761,-163.14617584,0.00012987,2]
[327741927,1716419438770,-155.21401085,0.00012987,2]
[327741928,1716419438779,-399.94974097,0.00012987,2]
[327741929,1716419438789,-2888.95190441,0.00012987,2]
[327741930,1716419438798,-204.2284287,0.00012987,2]
[327741931,1716419438808,-369.67747622,0.00012987,2]
[327741932,1716419438818,-192.35570876,0.00012987,2]
[327741933,1716419438828,-318.04989705,0.00012987,2]
[327741934,1716419438837,-3228.27492857,0.00012987,2]
[327741935,1716419438847,-2919.23173604,0.00012987,2]
[327741936,1716419438857,-1769.00785045,0.00012987,2]
[327741937,1716419438867,-405.35113642,0.00012987,2]
[327741938,1716419438876,-1064.33887229,0.00012987,2]
[327741939,1716419438886,-2080.56830896,0.00012987,2]
[327741940,1716419438898,-139.26679333,0.00012987,2]
[327741941,1716419438907,-258.67777501,0.00012988,2]
[327741942,1716419438919,-4483.62559279,0.00012988,2]
[327741943,1716419438928,-499.99,0.00012988,2]
[327741944,1716419438939,-1099.7004249,0.00012989,2]
[327741945,1716419438949,-630.0366362,0.00012989,2]
[327741946,1716419438968,-22551.2773402,0.00012989,2]
[327741947,1716419438979,-9074.9250313,0.00012989,2]
[327741948,1716419438990,-69772.7085706,0.00012989,2]
[327741949,1716419438999,-8664.4233538,0.00012989,2]
[327741950,1716419439011,-77306.1466186,0.00012989,2]
[327741951,1716419439021,-248.44,0.00012989,2]
[327741952,1716419439031,-241.65,0.00012989,2]
[327741953,1716419439042,-541.11,0.00012989,2]
[327741954,1716419439052,-10201.7344353,0.0001299,2]
[327741955,1716419439062,-350.54952428,0.0001299,2]
[327741956,1716419439072,-350.54952428,0.0001299,2]
[327741957,1716419439083,-350.54952428,0.0001299,2]
[327741958,1716419439092,-3007.4922158,0.00012998,2]
[327741959,1716419439102,-155.0,0.00012998,2]
[327741960,1716419439113,-200.75367218,0.00012999,2]
[327741961,1716419439123,-566.18248955,0.00012999,2]
[327741962,1716419439133,-1970.65922487,0.00012999,2]
[327741963,1716419439143,-207.77106734,0.00012999,2]
[327741964,1716419439154,-672.0,0.00013,2]
[327741965,1716419439164,-2284974.06662674,0.00013,2]
[327741966,1716419439174,-497888.89453775,0.00013,2]
[327741967,1716419439184,-24194.57556692,0.00013,2]
[327741968,1716419439194,-1035.78533,0.0001339,2]
[327741969,1716419439204,-8119.0,0.00013401,2]
[327741970,1716419439214,-154.59,0.00013414,2]
[327741971,1716419439224,-154.59,0.00013419,2]
[327741972,1716419439233,-154.59,0.00013425,2]
[327741973,1716419439244,-154.59,0.0001343,2]
[327741974,1716419439254,-154.59,0.00013436,2]
[327741975,1716419439266,-154.59,0.00013442,2]
[327741976,1716419439277,-154.59,0.00013447,2]
[327741977,1716419439287,-154.59,0.00013453,2]
[327741978,1716419439297,-1000.0,0.00013453,2]
[327741979,1716419439306,-1000.0,0.00013453,2]
[327741980,1716419439317,-1000.0,0.00013453,2]
[327741981,1716419439327,-1000.0,0.00013453,2]
[327741982,1716419439337,-1000.0,0.00013453,2]
[327741983,1716419439347,-1000.0,0.00013453,2]
[327741984,1716419439356,-1000.0,0.00013453,2]
[327741985,1716419439367,-1000.0,0.00013453,2]
[327741986,1716419439376,-1000.0,0.00013453,2]
[327741987,1716419439386,-1000.0,0.00013453,2]
[327741988,1716419439396,-1000.0,0.00013453,2]
[327741989,1716419439406,-1000.0,0.00013453,2]
[327741990,1716419439416,-1000.0,0.00013453,2]
[327741991,1716419439426,-1000.0,0.00013453,2]
[327741992,1716419439435,-1000.0,0.00013453,2]
[327741993,1716419439445,-1000.0,0.00013453,2]
[327741994,1716419439455,-1000.0,0.00013453,2]
[327741995,1716419439465,-1000.0,0.00013453,2]
[327741996,1716419439475,-1000.0,0.00013453,2]
[327741997,1716419439485,-1000.0,0.00013453,2]
[327741998,1716419439495,-1000.0,0.00013453,2]
[327741999,1716419439506,-1045.0,0.00013453,2]
[327742000,1716419439516,-154.59,0.00013458,2]
[327742001,1716419439525,-154.59,0.00013464,2]
[327742002,1716419439535,-445.0,0.00013464,2]
[327742003,1716419439545,-154.59,0.0001347,2]
[327742004,1716419439555,-154.59,0.00013475,2]
[327742005,1716419439566,-154.59,0.00013481,2]
[327742006,1716419439579,-602.28674059,0.00013584,2]
[327742007,1716419439588,-1029.94791917,0.00013698,5]
[327742008,1716419439599,-200.0,0.00013699,2]
[327742009,1716419439609,-200.0,0.00013699,2]
[327742010,1716419439619,-200.0,0.00013699,2]
[327742011,1716419439628,-2751.0,0.00013699,2]
[327742012,1716419439638,-791.5,0.00013699,2]
[327742013,1716419439647,-200.0,0.00013699,2]
[327742014,1716419439660,-500.0,0.00013699,2]
[327742015,1716419439670,-840.0,0.00013884,2]
[327742016,1716419439680,-200.0,0.00013936,2]
[327742017,1716419439690,-186.45,0.00013973,2]
[327742018,1716419439700,-223.86,0.00013973,2]
[327742019,1716419439710,-184.64,0.00013973,2]
[327742020,1716419439719,-173.64,0.00013973,2]
[327742021,1716419439729,-159.21,0.00013973,2]
[327742022,1716419439739,-313.58,0.00013973,2]
[327742023,1716419439749,-1035.78533,0.0001402,2]
[327742024,1716419439759,-6391.05131561,0.00014082,2]
[327742025,1716419439769,-175.65,0.00014452,2]
[327742026,1716419439779,-590.54592553,0.00014471,2]
[327742027,1716419439789,-1035.78534,0.0001465,2]
[327742028,1716419439799,-619.02429447,0.00015,2]
[327742029,1716419439808,-200.0,0.00015,2]
[327742030,1716419439818,-257.72182443,0.00015,2]
[327742031,1716419439827,-155.0,0.00015,2]
[327742032,1716419439838,-286.58,0.00015029,2]
[327742033,1716419439847,-300.0,0.00015068,2]
[327742034,1716419439857,-2107.35,0.00015159,2]
[327742035,1716419439867,-6391.05131561,0.00015264,2]
[327742036,1716419439877,-1035.78533,0.0001527,2]
[327742037,1716419439887,-840.0,0.00015427,2]
[327742038,1716419439896,-200.0,0.00015484,2]
[327742039,1716419439906,-415.7,0.0001565,2]
[327742040,1716419439916,-415.7,0.0001565,2]
[327742041,1716419439925,-415.7,0.0001565,2]
[327742042,1716419439935,-415.7,0.0001565,2]
[327742043,1716419439945,-1176.79,0.0001565,2]
[327742044,1716419439954,-223.62815806,0.0001565,2]
[327742045,1716419439964,-397.53,0.0001565,2]
[327742046,1716419439973,-151.36,0.00015672,2]
[327742047,1716419439983,-167.0,0.00015831,2]
[327742048,1716419439992,-1035.78533,0.0001589,2]
[327742049,1716419440002,-2455.35570559,0.00015891,2]
[327742050,1716419440012,-590.54592553,0.00016043,2]
[327742051,1716419440021,-167.0,0.00016142,2]
[327742052,1716419440035,-167.0,0.00016142,2]
[327742053,1716419440045,-870.02,0.00016384,2]
[327742054,1716419440055,-415.7,0.00016384,2]
[327742055,1716419440065,-870.02,0.00016384,2]
[327742056,1716419440075,-415.7,0.00016384,2]
[327742057,1716419440086,-5947.38,0.00016438,2]
[327742058,1716419440096,-300.0,0.00016438,2]
[327742059,1716419440105,-6391.05131561,0.00016445,2]
[327742060,1716419440115,-1227.2363061,0.000165,2]
[327742061,1716419440125,-175.65,0.00016517,2]
[327742062,1716419440135,-169.77636774,0.000169,2]
[327742063,1716419440146,-840.0,0.0001697,2]
[327742064,1716419440156,-200.0,0.00017033,2]
[327742065,1716419440166,-590.369,0.00017129,2]
[327742066,1716419440176,-156.172,0.00017129,2]
[327742067,1716419440186,-219.0,0.00017129,2]
[327742068,1716419440196,-2395.0,0.00017129,2]
[327742069,1716419440206,-1649.0,0.00017129,2]
[327742070,1716419440216,-153.805,0.00017129,2]
[327742071,1716419440226,-1137.0,0.00017129,2]
[327742072,1716419440236,-3162.0,0.00017129,2]
[327742073,1716419440246,-167.0,0.00017137,2]
[327742074,1716419440256,-7381.93678445,0.00017159,2]
[327742075,1716419440267,-5134.0,0.00017166,2]
[327742076,1716419440518,-289.0,0.00017166,2]
[327742077,1716419440528,-5759.0,0.00017166,2]
[327742078,1716419440538,-1499.885,0.00017166,2]
[327742079,1716419440547,-37894.0,0.00017166,2]
[327742080,1716419440556,-1061.0,0.00017166,2]
[327742081,1716419440567,-150.0,0.00017189,2]
[327742082,1716419440580,-151.655,0.00017189,2]
[327742083,1716419440589,-150.0,0.0001719,2]
[327742084,1716419440599,-150.982,0.0001719,2]
[327742085,1716419440608,-207.704,0.0001719,2]
[327742086,1716419440618,-151.397,0.0001719,2]
[327742087,1716419440628,-245.678,0.0001719,2]
[327742088,1716419440637,-154.688,0.0001719,2]
[327742089,1716419440646,-150.0,0.0001719,2]
[327742090,1716419440659,-150.0,0.0001719,2]
[327742091,1716419440668,-150.756,0.0001719,2]
[327742092,1716419440678,-160.088,0.0001719,2]
[327742093,1716419440687,-151.361,0.0001719,2]
[327742094,1716419440697,-150.0,0.0001719,2]
[327742095,1716419440706,-150.0,0.0001719,2]
[327742096,1716419440715,-150.0,0.0001719,2]
[327742097,1716419440725,-150.2,0.0001719,2]
[327742098,1716419440734,-974.0,0.0001719,2]
[327742099,1716419440744,-2161.0,0.0001719,2]
[327742100,1716419440754,-1400.0,0.0001719,2]
[327742101,1716419440765,-1263.0,0.0001719,2]
[327742102,1716419440775,-1225.0,0.0001719,2]
[327742103,1716419440784,-619.596,0.0001719,2]
[327742104,1716419440793,-1643.0,0.0001719,2]
[327742105,1716419440803,-470.532,0.0001719,2]
[327742106,1716419440812,-164.0,0.0001719,2]
[327742107,1716419440821,-809.0,0.0001719,2]
[327742108,1716419440830,-151.0,0.0001719,2]
[327742109,1716419440839,-151.0,0.0001719,2]
[327742110,1716419440850,-151.0,0.0001719,2]
[327742111,1716419440861,-151.0,0.0001719,2]
[327742112,1716419440871,-153.687288,0.0001719,2]
[327742113,1716419440880,-151.0,0.0001719,2]
[327742114,1716419440890,-151.0,0.0001719,2]
[327742115,1716419440900,-151.0,0.0001719,2]
[327742116,1716419440910,-151.763336,0.0001719,2]
[327742117,1716419440920,-226.87955,0.0001719,2]
[327742118,1716419440929,-226.87955,0.0001719,2]
[327742119,1716419440939,-151.0,0.0001719,2]
[327742120,1716419440948,-151.0,0.0001719,2]
[327742121,1716419440958,-151.0,0.0001719,2]
[327742122,1716419440968,-151.0,0.0001719,2]
[327742123,1716419440978,-151.0,0.0001719,2]
[327742124,1716419440989,-151.0,0.0001719,2]
[327742125,1716419440998,-151.0,0.0001719,2]
[327742126,1716419441009,-151.0,0.0001719,2]
[327742127,1716419441020,-152.604209,0.0001719,2]
[327742128,1716419441030,-151.0,0.0001719,2]
[327742129,1716419441039,-151.0,0.0001719,2]
[327742130,1716419441049,-151.0,0.0001719,2]
[327742131,1716419441058,-151.0,0.0001719,2]
[327742132,1716419441068,-151.0,0.0001719,2]
[327742133,1716419441078,-151.0,0.0001719,2]
[327742134,1716419441088,-151.0,0.0001719,2]
[327742135,1716419441098,-160.835563,0.0001719,2]
[327742136,1716419441107,-160.835563,0.0001719,2]
[327742137,1716419441118,-151.0,0.0001719,2]
[327742138,1716419441128,-151.0,0.0001719,2]
[327742139,1716419441138,-248.976468,0.0001719,2]
[327742140,1716419441147,-248.976468,0.0001719,2]
[327742141,1716419441156,-153.440934,0.0001719,2]
[327742142,1716419441166,-151.0,0.0001719,2]
[327742143,1716419441175,-151.0,0.0001719,2]
[327742144,1716419441185,-151.0,0.0001719,2]
[327742145,1716419441194,-151.0,0.0001719,2]
[327742146,1716419441204,-151.0,0.0001719,2]
[327742147,1716419441213,-315.079495,0.0001719,2]
[327742148,1716419441222,-315.079495,0.0001719,2]
[327742149,1716419441232,-151.0,0.0001719,2]
[327742150,1716419441241,-151.0,0.0001719,2]
[327742151,1716419441251,-151.0,0.0001719,2]
[327742152,1716419441261,-151.0,0.0001719,2]
[327742153,1716419441272,-151.0,0.0001719,2]
[327742154,1716419441281,-151.0,0.0001719,2]
[327742155,1716419441291,-152.06854,0.0001719,2]
[327742156,1716419441300,-153.639977,0.0001719,2]
[327742157,1716419441311,-151.0,0.0001719,2]
[327742158,1716419441321,-151.0,0.0001719,2]
[327742159,1716419441331,-332.730865,0.0001719,2]
[327742160,1716419441341,-332.730865,0.0001719,2]
[327742161,1716419441350,-151.0,0.0001719,2]
[327742162,1716419441360,-153.533247,0.0001719,2]
[327742163,1716419441369,-272.076501,0.0001719,2]
[327742164,1716419441379,-151.0,0.0001719,2]
[327742165,1716419441389,-1585.867987,0.0001719,2]
[327742166,1716419441398,-151.0,0.0001719,2]
[327742167,1716419441408,-1585.867987,0.0001719,2]
[327742168,1716419441417,-151.0,0.0001719,2]
[327742169,1716419441427,-151.0,0.0001719,2]
[327742170,1716419441437,-156.621904,0.0001719,2]
[327742171,1716419441447,-151.0,0.0001719,2]
[327742172,1716419441456,-241.705779,0.0001719,2]
[327742173,1716419441465,-241.705779,0.0001719,2]
[327742174,1716419441475,-151.0,0.0001719,2]
[327742175,1716419441484,-151.0,0.0001719,2]
[327742176,1716419441493,-151.0,0.0001719,2]
[327742177,1716419441504,-286.58,0.00017293,2]
[327742178,1716419441514,-414.26,0.00017315,2]
[327742179,1716419441524,-216.43,0.00017315,2]
[327742180,1716419441534,-870.02,0.00017342,2]
[327742181,1716419441544,-415.7,0.00017342,2]
[327742182,1716419441553,-870.02,0.00017342,2]
[327742183,1716419441563,-870.02,0.00017342,2]
[327742184,1716419441574,-1737.17,0.00017342,2]
[327742185,1716419441586,-870.02,0.00017342,2]
[327742186,1716419441596,-870.02,0.00017342,2]
[327742187,1716419441606,-870.02,0.00017342,2]
[327742188,1716419441617,-870.02,0.00017342,2]
[327742189,1716419441626,-870.02,0.00017342,2]
[327742190,1716419441636,-870.02,0.00017342,2]
[327742191,1716419441646,-870.02,0.00017342,2]
[327742192,1716419441657,-590.54592553,0.00017614,2]
[327742193,1716419441666,-151.0,0.00017616,2]
[327742194,1716419441675,-150.0,0.00017616,2]
[327742195,1716419441685,-150.0,0.00017616,2]
[327742196,1716419441694,-204.21,0.00017616,2]
[327742197,1716419441703,-150.0,0.00017616,2]
[327742198,1716419441713,-150.0,0.00017616,2]
[327742199,1716419441722,-150.0,0.00017616,2]
[327742200,1716419441732,-150.0,0.00017616,2]
[327742201,1716419441741,-150.0,0.00017616,2]
[327742202,1716419441750,-150.0,0.00017616,2]
[327742203,1716419441760,-300.0,0.00017624,2]
[327742204,1716419441770,-300.0,0.00017624,2]
[327742205,1716419441779,-6391.05131561,0.00017627,2]
[327742206,1716419441788,-501.06608686,0.00017735,2]
[327742207,1716419441798,-454.156,0.00017781,2]
[327742208,1716419441807,-454.156,0.00017781,2]
[327742209,1716419441816,-454.156,0.00017781,2]
[327742210,1716419441825,-163.0360265,0.00017807,2]
[327742211,1716419441835,-2107.35,0.00017899,2]
[327742212,1716419441845,-149.53631505,0.000179,5]
[327742213,1716419441854,-500.0,0.000179,5]
[327742214,1716419441864,-685.99323766,0.00017983,2]
[327742215,1716419441874,-155.0,0.00017983,2]
[327742216,1716419441883,-1151.96077803,0.00017984,5]
[327742217,1716419441893,-554.68465209,0.00017996,2]
[327742218,1716419441902,-306.78250955,0.00017998,2]
[327742219,1716419441911,-155.86868184,0.00017998,2]
[327742220,1716419441921,-98293.70742899,0.00018,2]
[327742221,1716419441931,-158.48372415,0.00018,2]
[327742222,1716419441940,-151.0,0.00018,2]
[327742223,1716419441950,-5831.0,0.000182,2]
[327742224,1716419441959,-839.0,0.000182,2]
[327742225,1716419441969,-151.0,0.000182,2]
[327742226,1716419441979,-315.079495,0.000182,2]
[327742227,1716419441989,-315.079495,0.000182,2]
[327742228,1716419441998,-151.0,0.000182,2]
[327742229,1716419442008,-151.0,0.000182,2]
[327742230,1716419442018,-151.0,0.000182,2]
[327742231,1716419442028,-332.730865,0.000182,2]
[327742232,1716419442038,-151.0,0.000182,2]
[327742233,1716419442048,-332.730865,0.000182,2]
[327742234,1716419442057,-1585.867987,0.000182,2]
[327742235,1716419442066,-151.0,0.000182,2]
[327742236,1716419442076,-1585.867987,0.000182,2]
[327742237,1716419442085,-151.0,0.000182,2]
[327742238,1716419442095,-151.0,0.000182,2]
[327742239,1716419442104,-151.0,0.000182,2]
[327742240,1716419442114,-241.705779,0.000182,2]
[327742241,1716419442123,-241.705779,0.000182,2]
[327742242,1716419442133,-151.0,0.000182,2]
[327742243,1716419442143,-151.0,0.000182,2]
[327742244,1716419442152,-223.62815806,0.000184,2]
[327742245,1716419442162,-764.95566785,0.000184,2]
[327742246,1716419442171,-170.21516562,0.000184,2]
[327742247,1716419442181,-362.15206861,0.000184,2]
[327742248,1716419442191,-150.0,0.00018411,2]
[327742249,1716419442201,-150.0,0.00018411,2]
[327742250,1716419442212,-150.0,0.00018411,2]
[327742251,1716419442222,-150.0,0.00018411,2]
[327742252,1716419442232,-150.0,0.00018411,2]
[327742253,1716419442242,-150.0,0.00018411,2]
[327742254,1716419442251,-172.66,0.00018411,2]
[327742255,1716419442261,-500.0,0.00018438,2]
[327742256,1716419442270,-500.0,0.00018438,2]
[327742257,1716419442279,-150.0,0.00018438,2]
[327742258,1716419442289,-150.0,0.00018438,2]
[327742259,1716419442299,-150.0,0.00018438,2]
[327742260,1716419442309,-150.0,0.00018438,2]
[327742261,1716419442318,-150.0,0.00018438,2]
[327742262,1716419442328,-150.0,0.00018438,2]
[327742263,1716419442338,-150.0,0.00018438,2]
[327742264,1716419442348,-150.0,0.00018438,2]
[327742265,1716419442357,-150.0,0.00018438,2]
[327742266,1716419442367,-150.0,0.00018438,2]
[327742267,1716419442377,-150.0,0.00018438,2]
[327742268,1716419442386,-150.0,0.00018438,2]
[327742269,1716419442396,-150.0,0.00018438,2]
[327742270,1716419442406,-150.0,0.00018438,2]
[327742271,1716419442415,-167.0,0.00018444,2]
[327742272,1716419442425,-840.0,0.00018513,2]
[327742273,1716419442434,-175.65,0.00018581,2]
[327742274,1716419442444,-200.0,0.00018581,2]
[327742275,1716419442454,-167.0,0.00018807,2]
[327742276,1716419442463,-151.0,0.00018809,2]
[327742277,1716419442472,-151.0,0.00018809,2]
[327742278,1716419442482,-151.0,0.00018809,2]
[327742279,1716419442491,-151.0,0.00018809,2]
[327742280,1716419442501,-151.0,0.00018809,2]
[327742281,1716419442511,-151.0,0.00018809,2]
[327742282,1716419442521,-151.0,0.00018809,2]
[327742283,1716419442530,-151.0,0.00018809,2]
[327742284,1716419442540,-151.0,0.00018809,2]
[327742285,1716419442549,-151.0,0.00018809,2]
[327742286,1716419442559,-151.0,0.00018809,2]
[327742287,1716419442572,-151.0,0.00018809,2]
[327742288,1716419442581,-156.002864,0.00018809,2]
[327742289,1716419442591,-160.835563,0.00018809,2]
[327742290,1716419442601,-160.835563,0.00018809,2]
[327742291,1716419442615,-151.0,0.00018809,2]
[327742292,1716419442624,-151.0,0.00018809,2]
[327742293,1716419442635,-6391.05131561,0.00018809,2]
[327742294,1716419442644,-150.0,0.00018963,2]
[327742295,1716419442657,-155.0,0.00019,2]
[327742296,1716419442667,-483.96258486,0.00019,2]
[327742297,1716419442676,-151.0,0.00019,2]
[327742298,1716419442686,-226.87955,0.00019,2]
[327742299,1716419442695,-226.87955,0.00019,2]
[327742300,1716419442704,-247.373907,0.00019,2]
[327742301,1716419442713,-2217.28721132,0.00019,2]
[327742302,1716419442722,-248.976468,0.00019,2]
[327742303,1716419442731,-248.976468,0.00019,2]
[327742304,1716419442741,-160.393363,0.00019,2]
[327742305,1716419442750,-151.0,0.00019,2]
[327742306,1716419442759,-151.0,0.00019,2]
[327742307,1716419442771,-152.739985,0.00019,2]
[327742308,1716419442780,-150.0,0.00019177,2]
[327742309,1716419442789,-500.0,0.00019178,2]
[327742310,1716419442799,-500.0,0.00019178,2]
[327742311,1716419442807,-500.0,0.00019178,2]
[327742312,1716419442816,-620.82434758,0.00019178,2]
[327742313,1716419442825,-340.92789138,0.00019178,2]
[327742314,1716419442834,-186.42146792,0.00019178,2]
[327742315,1716419442843,-500.0,0.00019178,2]
[327742316,1716419442852,-500.0,0.00019178,2]
[327742317,1716419442861,-500.0,0.00019178,2]
[327742318,1716419442870,-500.0,0.00019178,2]
[327742319,1716419442879,-500.0,0.00019178,2]